Cogmind - Beta 16.1 @@@ ROGUE MODE // 2026.04.19 @ 23:01:30 Player: FloorSandwich Result: Destroyed by D-53 Grenadier with Mini Grenade Launcher Performance ------------- Evolutions (0) 0 Regions Visited (2) 400 Robots Destroyed (16) 80 Value Destroyed (279) 279 Prototype IDs (0) 0 Alien Tech Used (0) 0 Bonus (0) 0 TOTAL SCORE: 759 Bonus ------- None Cogmind --------- Core Integrity 0/250 Matter 265/300 Energy 30/100 System Corruption 0% Temperature Cool (78) Movement Walking (125) Location -10/Mines Parts ------- > --- POWER (1) -------- (None) > --- PROPULSION (2) --- Aluminum Leg Titanium Leg > --- UTILITY (2) ------ Small Storage Unit > --- WEAPON (2) ------- Small Laser Pulse Rifle > --- INVENTORY (8) ---- Ion Engine Heat Sink Visual Processing Unit Sensor Array Improved Terrain Scanner Improved Terrain Scanner ECM Suite Peak State ------------ > --- POWER ------------ (None) > --- PROPULSION ------- Aluminum Leg Titanium Leg > --- UTILITY ---------- Small Storage Unit Light Armor Plating > --- WEAPON ----------- Small Laser Pulse Rifle > --- INVENTORY -------- Ion Engine Heat Sink Visual Processing Unit Sensor Array Improved Terrain Scanner Improved Terrain Scanner ECM Suite Small Laser [Rating: 11] Favorites ----------- Power Ion Engine Engine Ion Engine Propulsion Aluminum Leg Leg Aluminum Leg Utility Small Storage Unit Device Improved Terrain Scanner Storage Small Storage Unit Protection Light Armor Plating Weapon Small Laser Energy Gun Small Laser Build | -11 -10 -10 ------- Run | Yrd Mat Min Slots Evolved . | . . . Power . | . . . Propulsion . | . . . Utility . | . . . Weapon . | . . . Parts Attached 14 | 7 3 4 Power 1 | 1 . . Engine 1 | 1 . . Core . | . . . Reactor . | . . . Propulsion 3 | 2 . 1 Treads . | . . . Leg 3 | 2 . 1 Wheel . | . . . Hover . | . . . Flight . | . . . Utility 5 | 2 2 1 Device 3 | 1 2 . Storage 1 | 1 . . Processor . | . . . Hackware . | . . . Protection 1 | . . 1 Artifact . | . . . Weapon 5 | 2 1 2 Energy Gun 5 | 2 1 2 Energy Cannon . | . . . Ballistic Gun . | . . . Ballistic Cannon . | . . . Launcher . | . . . Special Weapon . | . . . Impact Weapon . | . . . Slashing Weapon . | . . . Piercing Weapon . | . . . Special Melee Weapon . | . . . Unidentified Prototypes . | . . . Parts Lost 4 | . 3 1 Power 1 | . 1 . Propulsion 1 | . 1 . Utility 1 | . . 1 Weapon 1 | . 1 . Highest Loss Streak 2 | . 2 1 To Critical Strikes . | . . . Average Backups 3 | 1 5 7 Power . | . 1 1 Propulsion . | . . . Utility 1 | . 3 6 Weapon . | . . . Tool/Special . | . . . Unused Backups 3 | . . 3 Power 1 | . . 1 Propulsion . | . . . Utility 2 | . . 2 Weapon . | . . . Tool/Special . | . . . Average Slot Usage (%) 96 | . 98 78 Engine 12 | . 13 . Leg 26 | . 27 21 Device 14 | . 15 3 Storage 12 | . 12 14 Energy Gun 27 | . 27 28 Peak Build Rating 11 | 9 9 11 Average Rating 7 | 5 8 8 On Entrance 5 | . 9 6 Avg Prop Armor Cover (%) . | . . . Naked Turns . | . . . Heaviest Build 14 | 13 14 12 Greatest Support 27 | 20 20 27 Greatest Overweight (x) . | . . . Average Overweight (x) . | . . . Largest Inventory Capacity 8 | 8 8 8 Average Capacity 7 | 7 7 8 Most Carried 8 | 4 8 8 Average Carried 3 | 1 5 7 Final Capacity 8 | 8 8 8 Final Carried 8 | 3 8 7 Class Distribution -------------------- 100% | Mutant Dominant Class ---------------- Mutant | -10/Materials Mutant | -10/Mines Resources | -11 -10 -10 ----------- Run | Yrd Mat Min Matter Collected 310 | 270 40 . Remotely . | . . . Salvage Created 536 | 223 313 . Parts 23 | 13 10 . Haulers Intercepted 1 | . 1 . Recyclers Shooed . | . . . Parts Field Recycled . | . . . Retrieved Matter . | . . . Parts Self-Destructed . | . . . Prevented . | . . . Parts Restored . | . . . Kills | -11 -10 -10 ------- Run | Yrd Mat Min Combat Hostiles Destroyed 6 | . 6 . Guns 6 | . 6 . Classes Destroyed 6 | 3 3 . Worker 4 | 4 . . Tunneler 3 | 3 . . Hauler 1 | . 1 . Recycler 1 | 1 . . Watcher 1 | . 1 . Grunt 6 | . 6 . Best Kill Streak 3 | 2 3 . Combat Bots Only 2 | . 2 . Max Kills in Single Turn 1 | 1 1 . Gunslinging . | . . . Exploded . | . . . Melee . | . . . Uniques/NPCs Destroyed . | . . . Combat | -11 -10 -10 -------- Run | Yrd Mat Min Hostile Shots Fired 80 | . 72 8 Missed 23 | . 23 . Hits 57 | . 49 8 Projectile 57 | . 49 8 AOE 8 | . . 8 Critical Strikes 1 | . 1 . Damage Taken 910 | . 583 327 Core 258 | . 150 108 Absorbed by Shields . | . . . Core Remaining (%) 100 | 100 . . Volleys Fired 68 | 29 37 2 Largest 2 | 2 2 2 Hottest 103 | 80 80 103 Shots Fired 130 | 58 68 4 Gun 130 | 58 68 4 Cannon . | . . . Launcher . | . . . Special . | . . . Kinetic . | . . . Thermal 130 | 58 68 4 Explosive . | . . . Electromagnetic . | . . . Robot Hit Streak 15 | 5 15 5 Robot Miss Streak 6 | 6 3 3 Penetration Max . | . . . Secondary Targets . | . . . Shots Hit Robots 78 | 29 48 1 Core Hits 30 | 9 21 . Critical Kills . | . . . Critical Parts Destroyed . | . . . Critical Strikes . | . . . Melee Attacks . | . . . Impact . | . . . Slashing . | . . . Piercing . | . . . Sneak Attacks . | . . . Combat Hostiles . | . . . Follow-up Attacks . | . . . Damage Inflicted 878 | 318 550 10 Guns 877 | 318 549 10 Cannons . | . . . Explosions . | . . . Melee . | . . . Ramming 1 | . 1 . Kinetic . | . . . Thermal 877 | 318 549 10 Explosive . | . . . Electromagnetic . | . . . Impact . | . . . Slashing . | . . . Piercing . | . . . Highest Corruption . | . . . Average Corruption . | . . . Corruption Purged . | . . . Corruption Blocked . | . . . Overload Shots . | . . . Overflow Damage . | . . . Projectiles . | . . . Explosions . | . . . Melee . | . . . Knockbacks . | . . . Impact . | . . . Kinetic . | . . . Secondary . | . . . Self-Inflicted Damage . | . . . Shots . | . . . Rammed . | . . . Targets Rammed 1 | . 1 . Kicked 1 | . 1 . Crushed . | . . . Highest Temperature 249 | 90 249 69 Average Temperature 59 | 34 83 41 Received Heat Transfer 354 | . 348 6 Effects 3 | . 3 . Interference 3 | . 3 . Siege Activations . | . . . Martial Activations . | . . . Shielding Activations . | . . . Robots Disrupted . | . . . Combat Hostiles . | . . . Robots Corrupted . | . . . Combat Hostiles . | . . . Parts Fried . | . . . Impact Corruptions . | . . . Robots Melted . | . . . Combat Hostiles . | . . . Parts Melted 6 | 3 3 . Heat Transferred 2000 | 725 1250 25 Parts Sabotaged . | . . . Parts Stolen . | . . . Parts Stripped . | . . . Power Chain Reactions . | . . . Alert | -11 -10 -10 ------- Run | Yrd Mat Min Maximum Alert Level . | . . . Low Security (%) 100 | 100 100 100 Level 1 . | . . . Level 2 . | . . . Level 3 . | . . . Level 4 . | . . . Level 5 . | . . . High Security . | . . . Max Security . | . . . Peak Influence 50 | 10 50 5 Initial 5 | . . 5 Average 8 | . 15 3 Influence Increases 209 | 40 169 . Destroy 0b10 Robot/C 120 | . 120 . Destroy 0b10 Robot/NC 50 | 40 10 . Destroy Leader 24 | . 24 . Lose Combat Pursuer 15 | . 15 . Influence Decreases 209 | 40 154 15 Entered New Map 10 | . . 10 Time Decay 187 | 40 142 5 Lost Part 12 | . 12 . Squads Dispatched 2 | . 1 1 Investigation 2 | . 1 1 Extermination . | . . . Reinforcement . | . . . Assault . | . . . Garrison . | . . . Intercept . | . . . Searches Triggered . | . . . Construction Impeded . | . . . Haulers Reinforced . | . . . Active Scanning Responses . | . . . Cargo Convoy Interrupts . | . . . Stealth | -11 -10 -10 --------- Run | Yrd Mat Min Distress Signals 1 | . 1 . Communications Jammed . | . . . Distress Signals . | . . . Times Spotted 15 | . 11 4 Peak Tracking Total 5 | . 3 5 Tactical Retreats 1 | . 1 . Traps | -11 -10 -10 ------- Run | Yrd Mat Min Traps Triggered . | . . . Indirectly . | . . . Trap Hack Attempts . | . . . Triggered . | . . . Disarmed . | . . . Reprogrammed . | . . . Reused . | . . . Traps Extracted . | . . . Installed . | . . . Triggered . | . . . Machines | -11 -10 -10 ---------- Run | Yrd Mat Min Machines Disabled . | . . . Max in Single Turn . | . . . Machines Repaired . | . . . Machines Dismantled . | . . . Machines Sabotaged . | . . . Overloaded Fab Kills . | . . . Hacking | -11 -10 -10 --------- Run | Yrd Mat Min Machines Accessed 3 | . 2 1 Terminals 1 | . 1 . Fabricators . | . . . Repair Stations 1 | . 1 . Recycling Units . | . . . Scanalyzers . | . . . Garrison Access . | . . . Total Hacks 6 | . 5 1 Successful 2 | . 1 1 Failed 4 | . 4 . Catastrophic 1 | . 1 . Database Lockouts . | . . . Manual 2 | . 2 . Terminals 3 | . 3 . Fabricators . | . . . Repair Stations 2 | . 2 . Recycling Units . | . . . Scanalyzers . | . . . Garrison Access . | . . . Terminal Hacks 2 | . 1 1 Open Door 1 | . . 1 Zone Layout 1 | . 1 . Fabricator Hacks . | . . . Repair Station Hacks . | . . . Recycling Unit Hacks . | . . . Scanalyzer . | . . . Garrison Access Hacks . | . . . Unauthorized Hacks . | . . . Terminals . | . . . Fabricators . | . . . Repair Stations . | . . . Recycling Units . | . . . Scanalyzers . | . . . Garrison Access . | . . . Data Cores Recovered . | . . . Used . | . . . Hacking Detections 2 | . 2 . Full Trace Events 2 | . 2 . Feedback Events . | . . . Feedback Blocked . | . . . Robot Schematics Acquired . | . . . Robots Built . | . . . Authchips . | . . . Time . | . . . Total Robot Build Rating . | . . . Part Schematics Acquired . | . . . Parts Built . | . . . Authchips . | . . . Time . | . . . Total Part Build Rating . | . . . Part Studies Acquired . | . . . Parts Repaired . | . . . Time . | . . . Parts Recycled . | . . . Recycled Matter . | . . . Retrieved Matter . | . . . Retrieved Components . | . . . Parts Scanalyzed . | . . . Part Schematics Acquired . | . . . Parts Damaged . | . . . Bothacking | -11 -10 -10 ------------ Run | Yrd Mat Min Used RIF Installer . | . . . Robots Hacked . | . . . Non-combat . | . . . Combat . | . . . Robot Hacks Applied . | . . . Relay Couplers Released . | . . . Fabnet Peak Effective % . | . . . Robots Rewired . | . . . Allies Hacked . | . . . Hacks Repelled . | . . . Allies | -11 -10 -10 -------- Run | Yrd Mat Min Total Allies . | . . . Largest Group . | . . . Highest-Rated Group . | . . . Highest-Rated Ally . | . . . Total Orders . | . . . Ally Attacks . | . . . Total Damage . | . . . Kills . | . . . Allies Corrupted . | . . . Allies Melted . | . . . Intel | -11 -10 -10 ------- Run | Yrd Mat Min Active Infowar (turns) 356 | 31 325 . Terrain 224 | 31 193 . ECM 194 | . 194 . Robot Analysis Total . | . . . Derelict Logs Recovered . | . . . Drone Launches . | . . . Drone Recoveries . | . . . Exploration | -11 -10 -10 ------------- Run | Yrd Mat Min Turns Passed 992 | 478 486 28 Spaces Moved 489 | 247 229 13 Core 11 | 11 . . Treads . | . . . Legs 478 | 236 229 13 Wheels . | . . . Hover . | . . . Flight . | . . . Fastest Speed 50 | 50 120 120 Average Speed 118 | 116 120 121 Slowest Speed 125 | 120 120 125 Overloaded Moves . | . . . Propulsion Burnouts . | . . . Robots Hopped . | . . . Potential Cave-ins . | . . . Cave-ins Triggered . | . . . Exploration Rate (%) 15 | 10 30 6 Regions Visited 2 Branch Regions 1 Pre-discovered Areas . | . . . Known Exits Taken . | . . . Unknown Exits Taken 2 | 1 1 . Scrap Searched . | . . . Spaces Dug . | . . . Terrain Destroyed . | . . . Melee . | . . . Projectile . | . . . AOE . | . . . Terrain Rammed . | . . . Walls Destroyed . | . . . Machines Disabled . | . . . Actions | -11 -10 -10 --------- Run | Yrd Mat Min Total 770 | 378 371 21 Wait 180 | 86 94 . Move 487 | 246 228 13 Hop . | . . . Pick Up 16 | 10 6 . Fast Attach 2 | . . 2 Attach 9 | 7 2 . Detach 1 | . 1 . Swap 4 | . 2 2 Drop 2 | . . 2 Fire 68 | 29 37 2 Melee . | . . . Ram . | . . . Kick 1 | . 1 . Crush . | . . . Escape Stasis . | . . . Rewire . | . . . Trap . | . . . Miscellaneous . | . . . Route ------- -11/Scrapyard -10/Materials -10/Mines History --------- Turn | Location | Event 4 | -11/Scrapyard | Discovered new exit (range 16) 479 | -11/Scrapyard | Entered Materials 480 | -10/Materials | Build established: Mutant 881 | -10/Materials | Discovered new exit (range 7) 945 | -10/Materials | Core integrity fell below 50% 965 | -10/Materials | Entered Mines 966 | -10/Mines | Assembled infested the area 975 | -10/Mines | Met a Derelict shopkeep closing up shop 987 | -10/Mines | Met a Derelict bent on vengeance 990 | -10/Mines | Core integrity fell below 20% 993 | -10/Mines | Destroyed by D-53 Grenadier with Mini Grenade Launcher Last Messages --------------- 00966_ ALERT: Infestation in the mines, dispatching Demolisher response squad. 00974_ Connecting with SHOP.Sys... 00974_ Current location identified: Mines >>Open Door Sealed Doors opened. 00975_ 3L-TZ9(g): "Sorry, the Unaware have moved into these parts and I'm closing up shop. No more sales from me!" 00977_ ALERT: Derelict activity detected in mines. Dispatching investigation squad. 00978_ Acquired Titanium Leg. 00979_ 3L-TZ9(g): "Grab stuff and run for it!" 00980_ Dropped Sml. Laser. 00983_ Acquired Pulse Rifle. 00984_ Dropped Sml. Laser. 00986_ 3L-TZ9(g) destroyed. 00987_ Machine disabled. 00992_ Lgt. Armor Plating destroyed. 00993_ The unstable cave ceiling collapses. Map ----- +----------------------------------------------------+ | ??????????????????????????????????? | | ??????????????????????????????????? | | ??????????????????????????????????? | | ??????????????????????????????????? | | ??????????????????????????????????? | | ??????????????????????????????????? | | ??????????????????????????????????? | | ??????????????????????????????????? | | ??????????????????????????????????? | | ??????????????????????????????????? | | ??????????????????????????????????? | | ??????????????????????????????????? | | ??????????????????????????????????? | | ??????????????????????????????????? | | ??????????????????????????????????? | | ??????????????????????????????????? | | ??????????????????????????????????? | | ??????????????????????????????????? | | ??????????????????????????????????? | | ??????????????????????????????????? | | ??????#######???? #???????????????? | | ?????## ##??? #???????????????? | | ????### ##? #???????????????? | | ????# ##g #???????????????? | | ????# ! g #???????????????? | | ????# @ #???????????????? | | ????# ####???????????????? | | ????# dd #??????????????????? | | ????## = #??????????????????? | | ?????# % #??????????????????? | | ?????# #??????????????????? | | ?????# ##??????????????????? | | ?????## #???????????????????? | | ??????## ##???????????????????? | | ???????# #####????????????????????? | | ???????# ?????????????????????????? | | ??????? ?????????????????????????? | | ?????? ?????????????????????????? | | ????? ?????????????????????????? | | ???? ?????????????????????????? | | ???# $?????????????????????????? | | ???#?## ?????????????????????????? | | ??????##??????????????????????????? | | ??????????????????????????????????? | | ??????????????????????????????????? | | ??????????????????????????????????? | | ??????????????????????????????????? | | ??????????????????????????????????? | | ??????????????????????????????????? | | ??????????????????????????????????? | +----------------------------------------------------+ Best States ------------- Heat Dissipation 35 Energy Generation 10 Energy Capacity 250 Matter Stores 300 Matter Capacity 300 Sight Range 16 Terrain Scan Range 16 Terrain Scan Density 10 ECM Strength 1 Armor Coverage 150 Evasion (%) 55 Item Schematics ----------------- None Robot Schematics ------------------ None Fabricated ------------ Nothing Repaired ---------- Nothing Studied --------- None Alien Tech Used ----------------- None Achievements -------------- None Challenges ------------ None Game ------ Seed BombardmentGaussParser Manual? 0 Play Time 00:07:43 Cumulative 17.2 hours Start 2026.04.19 @ 22:54:23 End 2026.04.19 @ 23:01:30 Sessions 1 Manual Loads 0 Difficulty Rogue Special Mode None Game No. 60 Rogue 60 Adventurer 0 Explorer 0 Win Type - Total 0 Types 0/0/0/0/0/0/0/0/0/0 Lore% 7 Gallery% 15 Achievement% 14 Wizard Run 0 Options --------- Layout 1 ASCII 0 Keyboard 0 Movement Arrows Keybinds 0 Fullscreen 1 Font 24/Tamsyn Map View 50x35 Zoom Use 0% Tactical HUD 1 Map Filters NONE Filters NONE Steam 1 RUN: 98d0ab9e-e9d7-4c15-afa2-bafc4181166f